Cogmind - Beta 16 @@@ ROGUE MODE // 2025.11.08 @ 17:43:11 Player: RHAHI Result: Destroyed by S-10 Pest with Light Assault Rifle Performance ------------- Evolutions (0) 0 Regions Visited (2) 400 Robots Destroyed (28) 140 Value Destroyed (570) 570 Prototype IDs (0) 0 Alien Tech Used (0) 0 Bonus (0) 0 TOTAL SCORE: 1110 Bonus ------- None Cogmind --------- Core Integrity 0/250 Matter 300/300 Energy 199/200 System Corruption 0% Temperature Cool (0) Movement Rolling (120) Ox1 Location -10/Subcaves Parts ------- > --- POWER (1) -------- Subdweller Power Source > --- PROPULSION (2) --- Subdweller Monowheel Subdweller Monowheel > --- UTILITY (2) ------ Improved Heat Sink Large Storage Unit > --- WEAPON (2) ------- Light Assault Rifle Battle Rifle > --- INVENTORY (15) --- Light Ion Engine Wheel Subdweller Optics Improved Terrain Scanner Hacking Suite Makeshift System Shield Subdweller Laser Mining Laser Scrap Shield Fragment (47) Scrap Shield Fragment (39) Scrap Shield Fragment (25) Scrap Shield Fragment (19) Peak State ------------ > --- POWER ------------ Subdweller Power Source > --- PROPULSION ------- Subdweller Monowheel Subdweller Monowheel > --- UTILITY ---------- Improved Heat Sink Large Storage Unit > --- WEAPON ----------- Light Assault Rifle Battle Rifle > --- INVENTORY -------- Light Ion Engine Improved Terrain Scanner Hacking Suite Makeshift System Shield Subdweller Laser Mining Laser Scrap Shield Fragment Scrap Shield Fragment Scrap Shield Fragment [Rating: 15] Favorites ----------- Power Subdweller Power Source Engine Subdweller Power Source Propulsion Light Treads Treads Light Treads Wheel Subdweller Monowheel Utility Sensor Array Device Sensor Array Storage Large Storage Unit Processor Transport Network Coupler Weapon Light Assault Rifle Energy Gun EM Pulse Gun Ballistic Gun Light Assault Rifle Launcher Grenade Launcher Special Weapon Mining Laser Build | -11 -10 -10 ------- Run | Yrd Mat Sub Slots Evolved . | . . . Power . | . . . Propulsion . | . . . Utility . | . . . Weapon . | . . . Parts Attached 26 | 4 13 9 Power 3 | . 2 1 Engine 3 | . 2 1 Core . | . . . Reactor . | . . . Propulsion 6 | 2 1 3 Treads 3 | 2 1 . Leg . | . . . Wheel 3 | . . 3 Hover . | . . . Flight . | . . . Utility 8 | . 5 3 Device 4 | . 2 2 Storage 1 | . . 1 Processor 3 | . 3 . Hackware . | . . . Protection . | . . . Artifact . | . . . Weapon 9 | 2 5 2 Energy Gun 1 | . 1 . Energy Cannon . | . . . Ballistic Gun 6 | 1 4 1 Ballistic Cannon . | . . . Launcher 1 | . . 1 Special Weapon 1 | 1 . . Impact Weapon . | . . . Slashing Weapon . | . . . Piercing Weapon . | . . . Special Melee Weapon . | . . . Unidentified Prototypes . | . . . Parts Lost 8 | . 2 6 Power 1 | . . 1 Propulsion 2 | . . 2 Utility 2 | . 1 1 Weapon 3 | . 1 2 Highest Loss Streak 4 | . 2 4 To Critical Strikes 1 | . . 1 Average Backups 4 | 2 4 5 Power 1 | . 1 . Propulsion . | . . . Utility 2 | . 1 3 Weapon 1 | . 1 1 Tool/Special . | . . . Unused Backups 6 | . . 6 Power 1 | . . 1 Propulsion . | . . . Utility 3 | . . 3 Weapon 2 | . . 2 Tool/Special . | . . . Average Slot Usage (%) 81 | . 73 96 Engine 5 | . 1 13 Treads 20 | . 28 5 Wheel 6 | . . 20 Device 11 | . 9 16 Storage 2 | . . 7 Processor 6 | . 7 4 Ballistic Gun 21 | . 21 19 Launcher 2 | . . 8 Special Weapon 3 | . 5 . Peak Build Rating 15 | 4 9 15 Average Rating 7 | 3 5 11 On Entrance 4 | . 4 9 Avg Prop Armor Cover (%) 20 | 30 24 8 Naked Turns . | . . . Heaviest Build 30 | 3 6 30 Greatest Support 40 | 3 40 40 Greatest Overweight (x) 3 | . 1 3 Average Overweight (x) . | . . 1 Largest Inventory Capacity 15 | 5 5 15 Average Capacity 6 | 5 5 10 Most Carried 12 | 5 5 12 Average Carried 5 | 2 4 7 Final Capacity 15 | 5 5 15 Final Carried 12 | 5 5 12 Class Distribution -------------------- 67% | Mutant 32% | Scavenger-Mutant Dominant Class ---------------- Mutant | -10/Materials Scavenger-Mutant | -10/Subcaves Resources | -11 -10 -10 ----------- Run | Yrd Mat Sub Matter Collected 849 | 123 397 329 Remotely . | . . . Salvage Created 699 | 61 525 113 Parts 58 | 7 40 11 Haulers Intercepted 2 | . 2 . Recyclers Shooed 4 | 1 3 . Parts Field Recycled . | . . . Retrieved Matter . | . . . Parts Self-Destructed . | . . . Prevented . | . . . Parts Restored . | . . . Kills | -11 -10 -10 ------- Run | Yrd Mat Sub Combat Hostiles Destroyed 16 | . 11 5 Guns 12 | . 10 2 AOE 4 | . 1 3 Classes Destroyed 10 | 1 7 2 Builder 1 | . 1 . Tunneler 4 | 4 . . Hauler 2 | . 2 . Recycler 1 | . 1 . Operator 2 | . 2 . Watcher 2 | . 2 . Swarmer 6 | . 6 . Grunt 5 | . 5 . Artisan 1 | . . 1 Subdweller 5 | . . 5 Best Kill Streak 5 | 3 5 3 Combat Bots Only 3 | . 3 3 Max Kills in Single Turn 1 | 1 1 1 Gunslinging . | . . . Exploded 1 | . 1 1 Melee . | . . . Uniques/NPCs Destroyed . | . . . Combat | -11 -10 -10 -------- Run | Yrd Mat Sub Hostile Shots Fired 74 | . 48 26 Missed 26 | . 19 7 Hits 48 | . 29 19 Projectile 48 | . 29 19 AOE 4 | . . 4 Critical Strikes 1 | . . 1 Damage Taken 975 | . 354 621 Core 251 | . 39 212 Absorbed by Shields . | . . . Core Remaining (%) 100 | 100 . . Volleys Fired 125 | 8 85 32 Largest 2 | 2 2 2 Hottest 120 | 120 120 50 Shots Fired 196 | 9 139 48 Gun 155 | 8 116 31 Cannon . | . . . Launcher 17 | . . 17 Special 24 | 1 23 . Kinetic 149 | 8 110 31 Thermal 24 | 1 23 . Explosive 17 | . . 17 Electromagnetic 6 | . 6 . Robot Hit Streak 13 | 4 13 8 Robot Miss Streak 6 | 1 6 2 Penetration Max . | . . . Secondary Targets . | . . . Shots Hit Robots 113 | 6 76 31 Core Hits 52 | 4 37 11 Critical Kills 1 | . . 1 Critical Parts Destroyed 1 | . 1 . Critical Strikes 2 | . 1 1 Destroy 2 | . 1 1 Melee Attacks . | . . . Impact . | . . . Slashing . | . . . Piercing . | . . . Sneak Attacks . | . . . Combat Hostiles . | . . . Follow-up Attacks . | . . . Damage Inflicted 1588 | 83 717 788 Guns 862 | 59 613 190 Cannons . | . . . Explosions 654 | . 56 598 Melee . | . . . Ramming . | . . . Kinetic 823 | 59 574 190 Thermal 128 | 24 104 . Explosive 598 | . . 598 Electromagnetic 39 | . 39 . Impact . | . . . Slashing . | . . . Piercing . | . . . Highest Corruption . | . . . Average Corruption . | . . . Corruption Purged . | . . . Corruption Blocked . | . . . Overload Shots . | . . . Overflow Damage 33 | . 23 10 Projectiles 1 | . 1 . Explosions 32 | . 22 10 Melee . | . . . Knockbacks . | . . . Impact . | . . . Kinetic . | . . . Secondary . | . . . Self-Inflicted Damage 183 | . 53 130 Shots 6 | . 1 5 Rammed . | . . . Targets Rammed . | . . . Kicked . | . . . Crushed . | . . . Highest Temperature 97 | . 97 . Average Temperature 27 | . 27 . Received Heat Transfer 150 | . 108 42 Siege Activations . | . . . Martial Activations . | . . . Shielding Activations . | . . . Robots Disrupted . | . . . Combat Hostiles . | . . . Robots Corrupted . | . . . Combat Hostiles . | . . . Parts Fried . | . . . Impact Corruptions . | . . . Robots Melted . | . . . Combat Hostiles . | . . . Parts Melted . | . . . Heat Transferred 200 | 50 150 . Parts Sabotaged . | . . . Parts Stolen . | . . . Parts Stripped . | . . . Power Chain Reactions 1 | . 1 . Alert | -11 -10 -10 ------- Run | Yrd Mat Sub Maximum Alert Level . | . . . Low Security (%) 100 | 100 100 . Level 1 . | . . . Level 2 . | . . . Level 3 . | . . . Level 4 . | . . . Level 5 . | . . . High Security . | . . . Max Security . | . . . Peak Influence 158 | 10 158 . Initial 6 | . 6 . Average 60 | 3 67 . Influence Increases 516 | 20 496 . Destroy 0b10 Robot/C 220 | . 220 . Destroy 0b10 Robot/NC 60 | 20 40 . Destroy Leader 48 | . 48 . Successful Hack 58 | . 58 . Disable Machine 30 | . 30 . Destroy Structure 25 | . 25 . Partial Spotted 30 | . 30 . Lose Combat Pursuer 45 | . 45 . Influence Decreases 516 | 10 348 158 Entered New Map 81 | . 4 77 Time Decay 375 | 10 324 41 Lost Part 60 | . 20 40 Squads Dispatched 2 | . 2 . Investigation 1 | . 1 . Extermination . | . . . Reinforcement 1 | . 1 . Assault . | . . . Garrison . | . . . Intercept . | . . . Searches Triggered . | . . . Construction Impeded . | . . . Haulers Reinforced . | . . . Active Scanning Responses . | . . . Cargo Convoy Interrupts . | . . . Stealth | -11 -10 -10 --------- Run | Yrd Mat Sub Distress Signals 1 | . 1 . Communications Jammed . | . . . Distress Signals . | . . . Times Spotted 34 | . 25 9 Peak Tracking Total 4 | . 3 4 Tactical Retreats 3 | . 3 . Traps | -11 -10 -10 ------- Run | Yrd Mat Sub Traps Triggered 1 | . 1 . Indirectly . | . . . Trap Hack Attempts . | . . . Triggered . | . . . Disarmed 3 | . 3 . Reprogrammed . | . . . Reused . | . . . Traps Extracted . | . . . Installed . | . . . Triggered . | . . . Machines | -11 -10 -10 ---------- Run | Yrd Mat Sub Machines Disabled 2 | . 2 . Max in Single Turn 1 | . 1 . Machines Repaired . | . . . Machines Dismantled . | . . . Machines Sabotaged . | . . . Overloaded Fab Kills . | . . . Hacking | -11 -10 -10 --------- Run | Yrd Mat Sub Machines Accessed 7 | . 7 . Terminals 6 | . 6 . Fabricators . | . . . Repair Stations . | . . . Recycling Units 1 | . 1 . Scanalyzers . | . . . Garrison Access . | . . . Total Hacks 22 | . 22 . Successful 12 | . 12 . Failed 10 | . 10 . Catastrophic . | . . . Database Lockouts . | . . . Manual 19 | . 19 . Terminals 20 | . 20 . Fabricators . | . . . Repair Stations . | . . . Recycling Units 2 | . 2 . Scanalyzers . | . . . Garrison Access . | . . . Terminal Hacks 2 | . 2 . Robot Analysis 1 | . 1 . Disarm Traps 1 | . 1 . Fabricator Hacks . | . . . Repair Station Hacks . | . . . Recycling Unit Hacks 1 | . 1 . Retrieve Components 1 | . 1 . Scanalyzer . | . . . Garrison Access Hacks . | . . . Unauthorized Hacks 9 | . 9 . Terminals 8 | . 8 . Assimilate 2 | . 2 . Botnet 1 | . 1 . Skim 5 | . 5 . Fabricators . | . . . Repair Stations . | . . . Recycling Units 1 | . 1 . Recyclers 1 | . 1 . Scanalyzers . | . . . Garrison Access . | . . . Data Cores Recovered 1 | . 1 . Used . | . . . Hacking Detections 7 | . 7 . Full Trace Events 1 | . 1 . Feedback Events . | . . . Feedback Blocked . | . . . Robot Schematics Acquired . | . . . Robots Built . | . . . Authchips . | . . . Time . | . . . Total Robot Build Rating . | . . . Part Schematics Acquired . | . . . Parts Built . | . . . Authchips . | . . . Time . | . . . Total Part Build Rating . | . . . Part Studies Acquired . | . . . Parts Repaired . | . . . Time . | . . . Parts Recycled . | . . . Recycled Matter . | . . . Retrieved Matter . | . . . Retrieved Components . | . . . Parts Scanalyzed . | . . . Part Schematics Acquired . | . . . Parts Damaged . | . . . Bothacking | -11 -10 -10 ------------ Run | Yrd Mat Sub Used RIF Installer . | . . . Robots Hacked . | . . . Non-combat . | . . . Combat . | . . . Robot Hacks Applied . | . . . Relay Couplers Released . | . . . Fabnet Peak Effective % . | . . . Robots Rewired . | . . . Allies Hacked . | . . . Hacks Repelled . | . . . Allies | -11 -10 -10 -------- Run | Yrd Mat Sub Total Allies 1 | . 1 . Largest Group 1 | . 1 . Highest-Rated Group 10 | . 10 . Highest-Rated Ally 10 | . 10 . Total Orders 4 | . 4 . STAY 2 | . 2 . FOLLOW 2 | . 2 . Ally Attacks . | . . . Total Damage . | . . . Kills . | . . . Allies Corrupted . | . . . Allies Melted . | . . . Intel | -11 -10 -10 ------- Run | Yrd Mat Sub Active Infowar (turns) 770 | . 573 197 Sensors 659 | . 485 174 Terrain 23 | . . 23 Seismic 88 | . 88 . T.N.C. 249 | . 249 . Robot Analysis Total 1 | . 1 . Derelict Logs Recovered 2 | . . 2 Drone Launches . | . . . Drone Recoveries . | . . . Exploration | -11 -10 -10 ------------- Run | Yrd Mat Sub Turns Passed 1401 | 99 875 427 Spaces Moved 1064 | 84 673 307 Core 706 | 84 562 60 Treads 111 | . 111 . Legs . | . . . Wheels 247 | . . 247 Hover . | . . . Flight . | . . . Fastest Speed 50 | 50 50 80 Average Speed 79 | 50 72 105 Slowest Speed 200 | 50 160 200 Overloaded Moves . | . . . Propulsion Burnouts . | . . . Robots Hopped . | . . . Potential Cave-ins . | . . . Cave-ins Triggered . | . . . Exploration Rate (%) 40 | 5 92 24 Regions Visited 2 Branch Regions 1 Pre-discovered Areas 2 | . 1 1 Known Exits Taken . | . . . Unknown Exits Taken 2 | 1 1 . Scrap Searched 4 | . . 4 Spaces Dug 47 | . 18 29 Terrain Destroyed 114 | . 24 90 Melee . | . . . Projectile 19 | . 19 . AOE 95 | . 5 90 Terrain Rammed . | . . . Walls Destroyed . | . . . Machines Disabled . | . . . Actions | -11 -10 -10 --------- Run | Yrd Mat Sub Total 1394 | 127 899 368 Wait 136 | 27 109 . Move 1062 | 83 672 307 Hop . | . . . Pick Up 22 | 5 6 11 Fast Attach 12 | 4 4 4 Attach 9 | . 4 5 Detach 6 | . 3 3 Swap 14 | . 10 4 Drop 8 | . 6 2 Fire 125 | 8 85 32 Melee . | . . . Ram . | . . . Kick . | . . . Crush . | . . . Escape Stasis . | . . . Rewire . | . . . Trap . | . . . Miscellaneous . | . . . Route ------- -11/Scrapyard -10/Materials (discovered 5 exits: *Mat x3 / *Min / [*Sub]) -10/Subcaves (discovered 2 exits: Mat x2) History --------- Turn | Location | Event 17 | -11/Scrapyard | Discovered new exit (range 15) 100 | -11/Scrapyard | Entered Materials 239 | -10/Materials | Discovered new exit (range 7) 313 | -10/Materials | Build established: Mutant 407 | -10/Materials | Loaded intel: 10 trap records 445 | -10/Materials | Learned 4 Subcaves zone layouts 474 | -10/Materials | Identified exit to Materials 474 | -10/Materials | Identified exit to Mines 482 | -10/Materials | Discovered exit to Materials (range 12) 503 | -10/Materials | Learned 2 Storage zone layouts 510 | -10/Materials | Learned location of 1 exit from Recycling 548 | -10/Materials | Learned Materials trap positions 744 | -10/Materials | Discovered new exit (range 7) 975 | -10/Materials | Entered Subcaves 976 | -10/Subcaves | Approached by a straggling Scientist 976 | -10/Subcaves | Identified exit to Materials 998 | -10/Subcaves | Learned location of Storage (-8) 1046 | -10/Subcaves | Ambushed by Subdweller buried in earth 1048 | -10/Subcaves | Ambushed by Subdweller buried in earth 1060 | -10/Subcaves | Core integrity fell below 50% 1088 | -10/Subcaves | Lost 4 parts (1p2n1w) 1169 | -10/Subcaves | Ambushed by angry Subdweller bent on revenge 1170 | -10/Subcaves | Core integrity fell below 20% 1292 | -10/Subcaves | Ambushed by Subdweller buried in earth 1353 | -10/Subcaves | Build established: Scavenger-Mutant 1402 | -10/Subcaves | Destroyed by S-10 Pest with Light Assault Rifle Last Messages --------------- 01293_ DK-91C(R): "ARGHSUB!" 01294_ Critical hit (Destroy). 01294_ Grenade Launcher destroyed. 01300_ The unstable cave ceiling collapses. 01300_ DK-91C(R) suffers critical hit (Destroy). 01300_ DK-91C(R) destroyed. 01308_ Acquired 53 matter. 01311_ The unstable cave ceiling collapses. 01313_ Dropped Wheel. 01315_ Acquired Sub. Laser. 01318_ The unstable cave ceiling collapses. 01318_ Acquired Scrap Shield Fragment. 01324_ The unstable cave ceiling collapses. 01324_ Acquired Wheel. 01326_ Acquired Sub. Optics. 01334_ The unstable cave ceiling collapses. 01350_ Searching scrap... 01350_ Found Sub. Power Source. 01350_ Found 56 Matter. 01351_ Acquired 51 matter. Map ----- +----------------------------------------------------+ | ??????????????????????? #????????????????????????? | | ??????????????????????? #????????????????????????? | | ??????????????????????? ##???????????????????????? | | ??????????????????????? #???????????????????????? | | ?????????????????????? #???????????????????????? | | ?????????????????????? ????????????????????????? | | ?????????????????????? ##???????????????????????? | | ????????????????????## ????????????????????????? | | ????????????????????# #?##??????????????????????? | | ???????????????????## ### #??????????????????????? | | #??????????????????# # # #???????????????????????? | | ###???????????????## ## #????????????????????????? | | ####???????????## ###%##???????????????????????? | | # #??????????## #### ###??????????????????????? | | #??????????# ## # #?###????????????????????? | | ###????????# ### # #???#????????????????????? | | #????????# ## ####???#????????????????????? | | # ###?????##%# ######??#????????????????????? | | # #????## ## ##???####????????????????????? | | ## #????# #### ##??????????????????????????? | | ?# # ##??### #??## ##??###????????????????????? | | ?## # #?### ##?? # ####?##???????????????????? | | ??# #### %##??##### ##???#???????????????????? | | ??# ## *##???????## ##??#???????????????????? | | ??##### #????????## #?##???????????????????? | | ??? ## # ??????##@###????????????????????? | | # ###### #???#### ###?????????????????????? | | ###??# #??# s###??????????????????????? | | ##?## ### ###??????????????????????? | | ### #??# ### ###????????????????????? | | #??## ##?# ## #????????????????????? | | #????# ### ##???????????????????? | | #????# # ##???????????????????? | | #????### ## ### ?????????????? | | #??????### ## ##?# #???????????????? | | #?????????# ## ##### #???????????????? | | ??????????## ###### ### #???????????????? | | ???????????????????# ??????? ##???????????????? | | ???????????????????## ???????? ????????????????? | | ????????????????????# ???????? ???????????????? | | ???????????????????? ????????? ??????????????? | | ???????????????????? ????????????????????????? | | ???????????????????? ???????????????????????? | | ????????????????????" ???????????????????????? | | ???????????????????? #???????????????????????? | | ????????????????????" ##???????????????????????? | | ????????????????????? #????????????????????????? | | ????????????????????? ?????????????????????????? | | ?????????????????????????????????????????????????? | | ?????????????????????????????????????????????????? | +----------------------------------------------------+ Best States ------------- Heat Dissipation 39 Energy Generation 10 Energy Capacity 250 Matter Stores 300 Matter Capacity 300 Sight Range 16 Robot Scan Range 14 Terrain Scan Range 16 Terrain Scan Density 85 Evasion (%) 50 Recoil Reduction 2 Item Schematics ----------------- None Robot Schematics ------------------ None Fabricated ------------ Nothing Repaired ---------- Nothing Studied --------- None Alien Tech Used ----------------- None Achievements -------------- None Challenges ------------ None Game ------ Seed DirectedCoolingConstruct Manual? 0 Play Time 00:32:46 Cumulative 62.8 hours Start 2025.11.08 @ 17:09:07 End 2025.11.08 @ 17:43:11 Sessions 1 Manual Loads 0 Difficulty Rogue Special Mode None Game No. 24 Rogue 23 Adventurer 1 Explorer 0 Win Type - Total 2 Types 1/0/1/0/0/0/0/0/0/0 Lore% 28 Gallery% 35 Achievement% 30 Wizard Run 0 Options --------- Layout 2 ASCII 0 Keyboard 1 Movement Vi Keybinds 1 Fullscreen 2 Font 32/Terminus Map View 50x44 Zoom Use 0% Tactical HUD 1 Map Filters NONE Filters NONE Steam 1 RUN: e04ea644-6841-427b-bdbc-736f72621b6d